Cogmind - Beta 16.1 *** ADVENTURER MODE // 2026.03.31 @ 15:55:34 Player: Lyft Result: Destroyed by AE-V7F(R) with Subdweller Machine Gun Performance ------------- Evolutions (0) 0 Regions Visited (2) 400 Robots Destroyed (19) 95 Value Destroyed (307) 307 Prototype IDs (4) 80 Alien Tech Used (0) 0 Bonus (0) 0 TOTAL SCORE: 882 Bonus ------- None Cogmind --------- Core Integrity 0/250 Matter 300/300 Energy 100/100 System Corruption 0% Temperature Cool (0) Movement Core (350) Ox6 Location -10/Subcaves Parts ------- > --- POWER (1) -------- (None) > --- PROPULSION (2) --- (None) > --- UTILITY (2) ------ Large Storage Unit > --- WEAPON (2) ------- (None) > --- INVENTORY (15) --- Light Treads Light Treads Light Treads Improved Heat Sink Improved Terrain Scanner Light Armor Plating Light Armor Plating EM Shotgun EM Shotgun EM Shotgun Mini Grenade Launcher Mini Grenade Launcher Datajack Mining Laser Peak State ------------ > --- POWER ------------ Light Nuclear Core > --- PROPULSION ------- Light Treads Light Treads > --- UTILITY ---------- Large Storage Unit Seismic Detector > --- WEAPON ----------- Assault Rifle Assault Rifle > --- INVENTORY -------- Light Treads Light Treads Light Treads Improved Heat Sink Improved Terrain Scanner Light Armor Plating Light Armor Plating EM Shotgun EM Shotgun EM Shotgun Mini Grenade Launcher Mini Grenade Launcher Datajack Mining Laser [Rating: 11] Favorites ----------- Power Light Ion Engine Engine Light Ion Engine Power Core Light Nuclear Core Propulsion Light Treads Treads Light Treads Leg Aluminum Leg Wheel Wheel Utility Seismic Detector Device Seismic Detector Storage Large Storage Unit Weapon Assault Rifle Ballistic Gun Assault Rifle Special Weapon Mining Laser Build | -11 -10 -10 ------- Run | Yrd Mat Sub Slots Evolved . | . . . Power . | . . . Propulsion . | . . . Utility . | . . . Weapon . | . . . Parts Attached 12 | 3 8 1 Power 2 | . 1 1 Engine 1 | . 1 . Core 1 | . . 1 Reactor . | . . . Propulsion 4 | 3 1 . Treads 3 | 2 1 . Leg . | . . . Wheel 1 | 1 . . Hover . | . . . Flight . | . . . Utility 3 | . 3 . Device 2 | . 2 . Storage 1 | . 1 . Processor . | . . . Hackware . | . . . Protection . | . . . Artifact . | . . . Weapon 3 | . 3 . Energy Gun . | . . . Energy Cannon . | . . . Ballistic Gun 2 | . 2 . Ballistic Cannon . | . . . Launcher . | . . . Special Weapon 1 | . 1 . Impact Weapon . | . . . Slashing Weapon . | . . . Piercing Weapon . | . . . Special Melee Weapon . | . . . Unidentified Prototypes . | . . . Parts Lost 7 | . . 7 Power 2 | . . 2 Propulsion 2 | . . 2 Utility 1 | . . 1 Weapon 2 | . . 2 Highest Loss Streak 5 | . . 5 To Critical Strikes . | . . . Average Backups 11 | 5 11 14 Power 1 | 1 1 . Propulsion 2 | 1 1 3 Utility 4 | 1 4 4 Weapon 3 | 1 3 6 Tool/Special . | . . . Unused Backups 20 | . 9 11 Power 2 | . 2 . Propulsion 2 | . . 2 Utility 10 | . 7 3 Weapon 5 | . . 5 Tool/Special 1 | . . 1 Average Slot Usage (%) 98 | . 99 94 Engine 12 | . 14 10 Treads 19 | . 16 26 Wheel 7 | . 11 . Device 13 | . 13 13 Storage 14 | . 14 14 Ballistic Gun 25 | . 24 25 Special Weapon 2 | . 3 . Peak Build Rating 11 | 6 9 11 Average Rating 8 | 5 8 9 On Entrance 7 | 6 6 9 Avg Prop Armor Cover (%) 11 | 11 11 . Naked Turns . | . . . Heaviest Build 30 | 12 28 30 Greatest Support 40 | 40 40 40 Greatest Overweight (x) 8 | 1 2 8 Average Overweight (x) . | . 1 . Largest Inventory Capacity 15 | 8 15 15 Average Capacity 13 | 8 13 15 Most Carried 15 | 7 15 15 Average Carried 11 | 5 11 14 Final Capacity 15 | 8 15 15 Final Carried 15 | 5 15 14 Class Distribution -------------------- 100% | Mutant Dominant Class ---------------- Mutant | -10/Materials Mutant | -10/Subcaves Resources | -11 -10 -10 ----------- Run | Yrd Mat Sub Matter Collected 535 | 308 191 36 Remotely . | . . . Salvage Created 583 | 170 271 142 Parts 49 | 17 23 9 Haulers Intercepted 1 | . 1 . Recyclers Shooed . | . . . Parts Field Recycled . | . . . Retrieved Matter . | . . . Parts Self-Destructed 5 | . . 5 Prevented . | . . . Parts Restored . | . . . Kills | -11 -10 -10 ------- Run | Yrd Mat Sub Combat Hostiles Destroyed 8 | . 5 3 Guns 8 | . 5 3 Classes Destroyed 8 | 3 4 1 Worker 2 | 1 1 . Tunneler 4 | 4 . . Hauler 1 | . 1 . Recycler 2 | 1 1 . Watcher 2 | . 2 . Swarmer 3 | . 3 . Grunt 2 | . 2 . Subdweller 3 | . . 3 Best Kill Streak 3 | 2 3 2 Combat Bots Only 3 | . 3 2 Max Kills in Single Turn 1 | 1 1 1 Gunslinging . | . . . Exploded . | . . . Melee . | . . . Uniques/NPCs Destroyed . | . . . Combat | -11 -10 -10 -------- Run | Yrd Mat Sub Hostile Shots Fired 101 | . 27 74 Missed 27 | . 8 19 Hits 74 | . 19 55 Projectile 74 | . 19 55 Critical Strikes 1 | . . 1 Damage Taken 1049 | . 121 928 Core 268 | . 8 260 Absorbed by Shields . | . . . Ignored by Resistances 304 | . 40 264 Core Remaining (%) 100 | 100 . . Volleys Fired 62 | 13 40 9 Largest 2 | 2 2 2 Hottest 100 | 40 100 40 Shots Fired 108 | 26 64 18 Gun 92 | 26 48 18 Cannon . | . . . Launcher . | . . . Special 16 | . 16 . Kinetic 92 | 26 48 18 Thermal 16 | . 16 . Explosive . | . . . Electromagnetic . | . . . Robot Hit Streak 16 | 10 14 16 Robot Miss Streak 2 | 1 2 1 Penetration Max . | . . . Secondary Targets 3 | . 2 1 Max Gunslinging Chain 1 | . 1 1 Shots Hit Robots 51 | 11 25 15 Core Hits 26 | 6 15 5 Critical Kills 1 | 1 . . Critical Parts Destroyed 1 | 1 . . Critical Strikes 2 | 2 . . Destroy 2 | 2 . . Melee Attacks . | . . . Impact . | . . . Slashing . | . . . Piercing . | . . . Sneak Attacks . | . . . Combat Hostiles . | . . . Follow-up Attacks . | . . . Damage Inflicted 605 | 134 302 169 Guns 605 | 134 302 169 Cannons . | . . . Explosions . | . . . Melee . | . . . Ramming . | . . . Kinetic 605 | 134 302 169 Thermal . | . . . Explosive . | . . . Electromagnetic . | . . . Impact . | . . . Slashing . | . . . Piercing . | . . . Highest Corruption . | . . . Average Corruption . | . . . Corruption Purged . | . . . Corruption Blocked . | . . . Overload Shots . | . . . Overflow Damage . | . . . Projectiles . | . . . Explosions . | . . . Melee . | . . . Knockbacks . | . . . Impact . | . . . Kinetic . | . . . Secondary . | . . . Self-Inflicted Damage . | . . . Shots . | . . . Rammed . | . . . Targets Rammed . | . . . Kicked . | . . . Crushed . | . . . Highest Temperature 120 | . 120 . Average Temperature 36 | . 36 . Received Heat Transfer 201 | . 21 180 Siege Activations . | . . . Martial Activations . | . . . Shielding Activations . | . . . Robots Disrupted . | . . . Combat Hostiles . | . . . Robots Corrupted . | . . . Combat Hostiles . | . . . Parts Fried . | . . . Impact Corruptions . | . . . Robots Melted . | . . . Combat Hostiles . | . . . Parts Melted . | . . . Heat Transferred . | . . . Parts Sabotaged . | . . . Parts Stolen . | . . . Parts Stripped . | . . . Power Chain Reactions . | . . . Alert | -11 -10 -10 ------- Run | Yrd Mat Sub Maximum Alert Level . | . . . Low Security (%) 100 | 100 100 . Level 1 . | . . . Level 2 . | . . . Level 3 . | . . . Level 4 . | . . . Level 5 . | . . . High Security . | . . . Max Security . | . . . Peak Influence 74 | 5 74 . Initial . | . . . Average 13 | 1 15 . Influence Increases 267 | 30 237 . Destroy 0b10 Robot/C 100 | . 100 . Destroy 0b10 Robot/NC 55 | 30 25 . Destroy Leader 26 | . 26 . Successful Hack 10 | . 10 . Select Force Hacks 60 | . 60 . Destroy Structure 16 | . 16 . Influence Decreases 267 | 30 217 20 Entered New Map 11 | . . 11 Time Decay 256 | 30 217 9 Squads Dispatched 5 | . 5 . Investigation 5 | . 5 . Extermination . | . . . Reinforcement . | . . . Assault . | . . . Garrison . | . . . Intercept . | . . . Searches Triggered . | . . . Construction Impeded . | . . . Haulers Reinforced . | . . . Active Scanning Responses . | . . . Cargo Convoy Interrupts . | . . . Stealth | -11 -10 -10 --------- Run | Yrd Mat Sub Distress Signals . | . . . Communications Jammed . | . . . Distress Signals . | . . . Times Spotted 24 | . 13 11 Peak Tracking Total 8 | . 3 8 Tactical Retreats 1 | . 1 . Traps | -11 -10 -10 ------- Run | Yrd Mat Sub Traps Triggered 1 | . 1 . Indirectly . | . . . Trap Hack Attempts . | . . . Triggered . | . . . Disarmed . | . . . Reprogrammed . | . . . Reused . | . . . Traps Extracted . | . . . Installed . | . . . Triggered . | . . . Machines | -11 -10 -10 ---------- Run | Yrd Mat Sub Machines Disabled . | . . . Max in Single Turn . | . . . Machines Repaired . | . . . Machines Dismantled . | . . . Machines Sabotaged . | . . . Overloaded Fab Kills . | . . . Hacking | -11 -10 -10 --------- Run | Yrd Mat Sub Machines Accessed 6 | . 6 . Terminals 4 | . 4 . Fabricators . | . . . Repair Stations . | . . . Recycling Units 2 | . 2 . Scanalyzers . | . . . Garrison Access . | . . . Total Hacks 23 | . 23 . Successful 17 | . 17 . Failed 6 | . 6 . Catastrophic . | . . . Database Lockouts . | . . . Manual 8 | . 8 . Terminals 15 | . 15 . Fabricators . | . . . Repair Stations . | . . . Recycling Units 8 | . 8 . Scanalyzers . | . . . Garrison Access . | . . . Terminal Hacks 8 | . 8 . Robot Analysis 1 | . 1 . Prototype ID Bank 2 | . 2 . Emergency Access Points 1 | . 1 . Locate Traps 1 | . 1 . Dispatch Records 1 | . 1 . Hauler Manifests 1 | . 1 . Zone Layout 1 | . 1 . Fabricator Hacks . | . . . Repair Station Hacks . | . . . Recycling Unit Hacks 5 | . 5 . Process 1 | . 1 . Report Inventory 2 | . 2 . Retrieve Matter 2 | . 2 . Scanalyzer . | . . . Garrison Access Hacks . | . . . Unauthorized Hacks 4 | . 4 . Terminals 2 | . 2 . Botnet 2 | . 2 . Fabricators . | . . . Repair Stations . | . . . Recycling Units 2 | . 2 . Tunnel 2 | . 2 . Scanalyzers . | . . . Garrison Access . | . . . Data Cores Recovered . | . . . Used . | . . . Hacking Detections 5 | . 5 . Full Trace Events 2 | . 2 . Feedback Events . | . . . Feedback Blocked . | . . . Robot Schematics Acquired . | . . . Robots Built . | . . . Authchips . | . . . Time . | . . . Total Robot Build Rating . | . . . Part Schematics Acquired . | . . . Parts Built . | . . . Authchips . | . . . Time . | . . . Total Part Build Rating . | . . . Part Studies Acquired . | . . . Parts Repaired . | . . . Time . | . . . Parts Recycled . | . . . Recycled Matter 7 | . 7 . Retrieved Matter 107 | . 107 . Retrieved Components . | . . . Parts Scanalyzed . | . . . Part Schematics Acquired . | . . . Parts Damaged . | . . . Bothacking | -11 -10 -10 ------------ Run | Yrd Mat Sub Used RIF Installer . | . . . Robots Hacked . | . . . Non-combat . | . . . Combat . | . . . Robot Hacks Applied . | . . . Relay Couplers Released . | . . . Fabnet Peak Effective % . | . . . Robots Rewired . | . . . Allies Hacked . | . . . Hacks Repelled . | . . . Allies | -11 -10 -10 -------- Run | Yrd Mat Sub Total Allies . | . . . Largest Group . | . . . Highest-Rated Group . | . . . Highest-Rated Ally . | . . . Total Orders . | . . . Ally Attacks . | . . . Total Damage . | . . . Kills . | . . . Allies Corrupted . | . . . Allies Melted . | . . . Intel | -11 -10 -10 ------- Run | Yrd Mat Sub Active Infowar (turns) 1234 | . 881 353 Terrain 1 | . 1 . Seismic 1233 | . 880 353 Robot Analysis Total 1 | . 1 . Derelict Logs Recovered 1 | . . 1 Drone Launches . | . . . Drone Recoveries . | . . . Exploration | -11 -10 -10 ------------- Run | Yrd Mat Sub Turns Passed 1407 | 148 885 374 Spaces Moved 864 | 72 595 197 Core 5 | . . 5 Treads 344 | 39 113 192 Legs 27 | 27 . . Wheels 488 | 6 482 . Hover . | . . . Flight . | . . . Fastest Speed 95 | 95 95 160 Average Speed 128 | 139 115 165 Slowest Speed 450 | 160 240 450 Overloaded Moves . | . . . Propulsion Burnouts . | . . . Robots Hopped . | . . . Potential Cave-ins . | . . . Cave-ins Triggered . | . . . Exploration Rate (%) 33 | 4 82 14 Regions Visited 2 Branch Regions 1 Pre-discovered Areas 2 | . 2 . Known Exits Taken . | . . . Unknown Exits Taken 2 | 1 1 . Scrap Searched 7 | . . 7 Spaces Dug 16 | . 16 . Terrain Destroyed 16 | . 16 . Melee . | . . . Projectile 16 | . 16 . AOE . | . . . Terrain Rammed . | . . . Walls Destroyed . | . . . Machines Disabled . | . . . Actions | -11 -10 -10 --------- Run | Yrd Mat Sub Total 1016 | 94 695 227 Wait 37 | . 17 20 Move 862 | 71 594 197 Hop . | . . . Pick Up 23 | 3 20 . Fast Attach 1 | . 1 . Attach 4 | 2 1 1 Detach . | . . . Swap 13 | 1 12 . Drop 14 | 4 10 . Fire 62 | 13 40 9 Melee . | . . . Ram . | . . . Kick . | . . . Crush . | . . . Escape Stasis . | . . . Rewire . | . . . Trap . | . . . Miscellaneous . | . . . Route ------- -11/Scrapyard -10/Materials (discovered 4 exits: [*Mat x3] / [*Sub]) -10/Subcaves (discovered 1 exit: Rec) History --------- Turn | Location | Event 1 | -11/Scrapyard | Discovered new exit (range 1) 149 | -11/Scrapyard | Entered Materials 314 | -10/Materials | Build established: Mutant 444 | -10/Materials | Discovered new exit (range 3) 522 | -10/Materials | Discovered new exit (range 9) 649 | -10/Materials | Derelicts attacked the area 856 | -10/Materials | Discovered new exit (range 8) 1019 | -10/Materials | Discovered new exit (range 10) 1034 | -10/Materials | Entered Subcaves 1035 | -10/Subcaves | Approached by a straggling Scientist 1100 | -10/Subcaves | Disturbed a concealed Subdweller 1294 | -10/Subcaves | Identified exit to Recycling 1301 | -10/Subcaves | Ambushed by swarm of Subdwellers 1310 | -10/Subcaves | Ambushed by Subdwellers from Twisted Machinery 1361 | -10/Subcaves | Lost 5 allies 1381 | -10/Subcaves | Core integrity fell below 50% 1400 | -10/Subcaves | Core integrity fell below 20% 1408 | -10/Subcaves | Destroyed by AE-V7F(R) with Subdweller Machine Gun Last Messages --------------- 01307_ KN-LRG(g): "Sorry we're late! Had another grouchy Sub to deal with. Who's the new fellow?" 01307_ Lgt. Ion Engine destroyed. 01310_ AE-V7F(R) emerges from the Twisted Machinery. 01310_ GL-BPH(R) angrily emerges from the Twisted Machinery. 01311_ HV Slug penetrates Twisted Machinery. 01311_ HV Slug penetrates Wall. 01314_ W2-85P(c) destroyed. 01322_ IC-2WM(h) suffers critical hit (Destroy). 01322_ IC-2WM(h) destroyed. 01346_ Assault Rifle destroyed. 01387_ Seismic Detector destroyed. 01388_ Lgt. Treads destroyed. 01393_ Assault Rifle destroyed. 01396_ Lgt. Nuclear Core destroyed. [Achievement: Back For More] Map ----- +----------------------------------------------------+ | ?????????????????????????????????????# #??????? | | ?????????????????????????????????????# #??????? | | ?????????????????????????????????????## #??????? | | ?????????????????????????????????????# ##??????? | | ?????????????????????????????????????## #???????? | | ??????????????????????????????????????#!&#???????? | | ??????????????????????????????????????#=%#???????? | | ??????????????????????????????????????#&%#???????? | | ??????????????????????????????????????#&&#???????? | | ??????????????????????????????????????##=##??????? | | ??????????????????????????????????????## #??????? | | ?????????????????????????????????????## #??????? | | ?????????????????????????????????????# ##?????? | | ??????????????????????????????#?????## #?????? | | ?????????????????????????????## ??### ##?????? | | ????????????????????????????## ### ##??????? | | ???????????????????????????## ##???????? | | ???????????????????????????# ## #????????? | | ???????????????????????????# ### ####????????? | | ???????????????????????????# ????## #???????????? | | ??????????????????# ????????????## ##???????????? | | ????????????????### ????????#### ###??????????? | | ???????????????## ????#### # ## ###????????? | | ??????????????## ?### RR R ###??????? | | ??????????????# ## R RR ###????? | | ???????????????# @= ### #### ### #????? | | ????????????????# [R%### ##?# ##?## #????? | | ????????????????# ####%!;### ### #???# #????? | | ???????????????# ?????#=%[;## #????# #????? | | ??????????????# ????????#% #!# ## #????# #????? | | ??????????????# ##; "#%##### ##??## #????? | | ?????????????????# "" * #??# #### #????? | | ??????????????????# """" !% #?# ##????? | | ??????????????????# ##""" %## "#?#########?????? | | ???????????????????????#"""" #?""#???????????????? | | ???????????????????????##"""##? #???????????????? | | ????????????????????????#" "#?? ##???????????????? | | ????????????????????????# "??? ????????????????? | | ????????????????????????#""???? ????????????????? | | ????????????????????????## ???? ????????????????? | | ???????????????????????????????# ????????????????? | | ????????????????????????????????#"???????????????? | | ?????????????????????????????????????????????????? | | ?????????????????????????????????????????????????? | | ?????????????????????????????????????????????????? | | ?????????????????????????????????????????????????? | | ?????????????????????????????????????????????????? | | ?????????????????????????????????????????????????? | | ?????????????????????????????????????????????????? | | ?????????????????????????????????????????????????? | +----------------------------------------------------+ Best States ------------- Heat Dissipation 25 Energy Generation 14 Energy Capacity 160 Matter Stores 300 Matter Capacity 300 Sight Range 16 Terrain Scan Density 10 Resistance: KI 20 Resistance: TH 20 Resistance: EX 20 Resistance: EM 20 Resistance: I 20 Resistance: S 20 Resistance: P 20 Evasion (%) 45 Recoil Reduction 2 Offensive Hacking 10 Item Schematics ----------------- None Robot Schematics ------------------ None Fabricated ------------ Nothing Repaired ---------- Nothing Studied --------- None Alien Tech Used ----------------- None Achievements -------------- Back For More DATA ERROR: Steam Global Achievement% Organ Harvest Challenges ------------ None Game ------ Seed ArchitectShiftReconfigurator Manual? 0 Play Time 00:36:42 Cumulative 29.6 hours Start 2026.03.31 @ 15:18:15 End 2026.03.31 @ 15:55:34 Sessions 1 Manual Loads 0 Difficulty Adventurer Special Mode None Game No. 51 Rogue 47 Adventurer 3 Explorer 1 Win Type - Total 0 Types 0/0/0/0/0/0/0/0/0/0 Lore% 15 Gallery% 25 Achievement% 15 Wizard Run 0 Options --------- Layout 1 ASCII 0 Keyboard 0 Movement Mouse Keybinds 0 Fullscreen 1 Font 48/Smallcaps Map View 50x35 Zoom Use 0% Tactical HUD 1 Map Filters NONE Filters NONE Steam 1 RUN: 1b891bc1-db3b-45e5-9f6a-2fdd87789cfe